bitfinex/quotes_ETHUSD_20240711
["timestamp","ask_amount","ask_price","bid_price","bid_amount"]
[1720712784609,0.00082073,3130.9,3130.4,2.2596]
[1720712784835,0.00082073,3130.9,3130.8,6.38814]
[1720712785037,0.00082073,3130.9,3130.8,7.09081513]
[1720712785257,0.00082073,3130.9,3130.8,13.28488513]
[1720712785453,0.00082073,3130.9,3130.8,16.965094]
[1720712785604,0.00082073,3130.9,3130.8,7.026954]
[1720712785955,5.15e-06,3130.9,3130.8,7.026954]
[1720712786120,5.15e-06,3130.9,3130.8,0.638814]
[1720712786323,5.15e-06,3130.9,3130.5,3.084]
[1720712786523,5.15e-06,3130.9,3130.7,3.19408]
[1720712786726,5.15e-06,3130.9,3130.5,3.084]
[1720712786727,5.15e-06,3130.9,3130.5,3.1943]
[1720712786936,5.15e-06,3130.9,3129.9,6.403497]
[1720712787250,5.15e-06,3130.9,3130.1,3.19474]
[1720712787550,5.15e-06,3130.9,3130.0,3.1948]
[1720712787787,5.15e-06,3130.9,3129.8,3.19501]
[1720712787939,5.15e-06,3130.9,3129.3,3.084]
[1720712788262,5.15e-06,3130.9,3129.8,3.19502]
[1720712788411,5.15e-06,3130.9,3130.1,3.19469]
[1720712788613,5.15e-06,3130.9,3130.2,0.38334793]
[1720712788805,5.15e-06,3130.9,3129.9,3.084]
[1720712789047,5.15e-06,3130.9,3130.3,3.1945]
[1720712789332,5.15e-06,3130.9,3130.0,3.19488]
[1720712789540,5.15e-06,3130.9,3130.3,3.19457]
[1720712789926,5.15e-06,3130.9,3130.1,3.19468]
[1720712790106,5.15e-06,3130.9,3130.2,0.319468]
[1720712790666,5.15e-06,3130.9,3129.8,3.19508]
[1720712790963,5.15e-06,3130.9,3130.0,3.19479]
[1720712791261,5.15e-06,3130.9,3129.9,3.19498]
[1720712791425,5.15e-06,3130.9,3130.2,3.19468]
[1720712791746,5.15e-06,3130.9,3130.0,3.19482]
[1720712791946,5.15e-06,3130.9,3130.1,3.83373]
[1720712792248,5.15e-06,3130.9,3130.2,3.19468]
[1720712792448,5.15e-06,3130.9,3130.5,3.19431]
[1720712792610,5.15e-06,3130.9,3130.7,3.1941]
[1720712792824,5.15e-06,3130.9,3130.3,3.1945]
[1720712793037,5.15e-06,3130.9,3130.1,7.87898]
[1720712793250,5.15e-06,3130.9,3129.6,7.24]
[1720712793551,5.15e-06,3130.9,3129.7,3.19518]
[1720712793759,5.15e-06,3130.9,3130.0,3.19479]
[1720712794088,5.62878,3131.9,3130.0,3.19479]
[1720712794089,2.4358,3131.9,3130.3,3.19458]
[1720712794224,3.19347,3131.4,3129.8,7.24]
[1720712794428,3.1933,3131.6,3130.1,3.19475]
[1720712794777,3.19347,3131.4,3130.0,3.19482]
[1720712794923,3.19317,3131.7,3130.0,3.19482]
[1720712795280,3.19317,3131.7,3129.9,0.724]
[1720712795281,2.4358,3131.9,3129.9,0.724]
[1720712795426,3.19315,3131.7,3129.8,7.24]
[1720712795628,3.19379,3131.1,3129.8,7.24]
[1720712795963,3.19315,3131.7,3129.6,3.19529]
[1720712795964,3.19387,3131.0,3129.6,3.19529]
[1720712796280,3.19407,3130.8,3129.3,10.43551]
[1720712796463,2.321,3130.9,3129.1,0.639163]
[1720712796464,2.321,3130.9,3129.5,3.19529]
[1720712796661,0.2321,3130.8,3129.5,3.514819]
[1720712796972,0.2321,3130.8,3129.6,3.19527]
[1720712797140,3.42617,3130.8,3129.5,0.319529]
[1720712797350,3.42617,3130.8,3129.3,3.19557]
[1720712797351,3.19418,3130.7,3129.3,3.19557]
[1720712797653,3.19418,3130.7,3129.1,3.834963]
[1720712797654,0.2321,3130.8,3129.1,0.639163]
[1720712797969,3.42617,3130.8,3129.4,3.19545]
[1720712798137,3.19418,3130.7,3129.2,3.19569]
[1720712798466,0.2321,3130.8,3129.0,2.3726]
[1720712798671,2.321,3130.9,3129.7,3.19512]
[1720712798982,0.55,3130.8,3128.2,2.2571]
[1720712799127,2.4112,3129.8,3128.2,2.2571]
[1720712799323,2.4112,3129.8,3128.3,7.24]
[1720712799523,0.24112,3129.7,3128.4,3.92045]
[1720712799765,0.24112,3129.7,3128.4,0.724]
[1720712799972,3.43633,3129.7,3128.4,0.724]
[1720712800126,0.24112,3129.7,3128.5,3.19639]
[1720712800370,2.4112,3129.8,3128.6,3.26013763]
[1720712800530,2.4112,3129.8,3128.6,3.19622]
[1720712800736,5.60629,3129.8,3128.0,7.24]
[1720712800949,5.60629,3129.8,3128.0,3.1969]
[1720712801173,5.60629,3129.8,3127.8,3.19709]
[1720712801174,2.4112,3129.8,3127.8,3.19709]
[1720712801327,1.110629,3129.7,3128.2,3.19671]
[1720712801527,3.19556,3129.4,3127.6,5.45436]
[1720712801828,3.19591,3129.0,3127.7,3.3126007]
[1720712802055,3.19591,3129.0,3127.7,0.1153907]
[1720712802261,0.319591,3128.9,3127.7,0.1153907]
[1720712802638,0.319591,3128.9,3127.7,3.3125507]
[1720712802852,0.319591,3128.9,3127.7,0.1153907]
[1720712803040,3.19622,3128.7,3127.7,0.1153907]
[1720712803590,3.19643,3128.5,3127.7,0.1153907]
[1720712804088,6.39209579,3128.5,3127.7,0.1153907]
[1720712804372,3.19652,3128.4,3127.7,0.1153907]
[1720712804594,2.4239,3128.6,3127.7,0.1153907]
[1720712804595,3.19662,3128.3,3127.7,0.1153907]
[1720712804735,3.516412,3128.2,3127.7,0.1153907]
[1720712805073,0.319662,3128.2,3127.7,0.1153907]
[1720712805276,3.1961,3128.9,3127.7,0.1153907]
[1720712805832,2.4034,3129.0,3127.7,0.1153907]
[1720712805833,5.59933,3129.0,3127.7,0.1153907]
[1720712806068,3.19623,3128.7,3127.7,0.1153907]
[1720712806388,3.19651,3128.5,3127.7,0.1153907]
[1720712806680,0.3197,3128.9,3127.7,0.1153907]
[1720712806681,0.639283,3128.4,3127.7,0.1153907]
[1720712806834,3.19608,3128.9,3127.7,0.1153907]
[1720712807028,2.4034,3129.0,3127.8,3.19713]
[1720712807230,2.4034,3129.0,3127.7,3.3126207]
[1720712807569,3.19636402,3129.4,3127.8,0.06392815]
[1720712807570,0.00081402,3129.4,3127.8,0.06392815]
[1720712807736,0.00081402,3129.4,3128.6,3.1963]
[1720712808064,0.00081402,3129.4,3127.8,0.33765889]
[1720712808065,0.00081402,3129.4,3128.8,3.19602]
[1720712808229,0.00081402,3129.4,3128.9,3.196]
[1720712808430,0.00081402,3129.4,3127.7,5.4596907]
[1720712808733,0.01618006,3128.8,3127.9,3.19695]
[1720712808930,0.01618006,3128.8,3128.0,0.35346089]
[1720712809132,0.01618006,3128.8,3127.7,0.1153907]
[1720712810048,0.01618006,3128.8,3128.0,3.19692]
[1720712810231,0.01618006,3128.8,3128.0,3.19691]
[1720712811080,0.01618006,3128.1,3128.0,3.19693]
[1720712811286,0.01618006,3128.1,3128.0,6.39386]
[1720712811576,0.00081402,3129.4,3128.1,3.0]
[1720712811730,0.00081402,3129.4,3128.8,3.19605]
[1720712811931,3.19454,3130.4,3128.8,3.19605]
[1720712812271,3.19454,3130.4,3129.0,3.19586]
[1720712812272,3.19455,3130.4,3129.0,3.19586]
[1720712812633,2.2526,3130.7,3129.2,3.19569]
[1720712812940,2.2526,3130.7,3129.3,0.319569]
[1720712812941,0.22526,3130.6,3129.3,0.319569]
[1720712813454,0.22526,3130.6,3129.2,3.19567]
[1720712813455,3.19441,3130.5,3129.2,3.19567]
[1720712813789,0.22526,3130.6,3129.2,3.19567]
[1720712813954,0.22526,3130.6,3129.2,6.39129]
[1720712814154,0.22526,3130.6,3129.3,0.0639003]
[1720712814385,0.22526,3130.6,3129.4,3.1954]
[1720712814540,0.22526,3130.6,3129.5,3.51493]
[1720712814746,0.22526,3130.6,3129.5,0.31954]
[1720712814994,2.2526,3130.7,3129.5,0.31954]
[1720712815156,2.2526,3130.7,3129.0,7.24]
[1720712815360,5.44683,3130.7,3129.2,3.19566]
[1720712815585,5.44683,3130.7,3129.3,0.2]
[1720712815776,5.44683,3130.7,3129.3,3.39555]
[1720712815777,3.19433,3130.6,3129.3,3.39555]
[1720712816083,0.864116,3130.5,3129.3,0.2]
[1720712817054,3.19448,3130.4,3129.3,0.2]
[1720712818301,0.864116,3130.5,3129.3,0.2]
[1720712818450,3.19481,3130.1,3129.3,0.2]
[1720712818787,6.38928,3130.3,3129.3,0.2]
[1720712819080,6.38934,3130.3,3129.3,0.2]
[1720712819253,3.19467,3130.3,3129.3,0.2]
[1720712819459,5.44682,3130.7,3129.3,0.2]
[1720712819788,0.22526,3130.6,3129.5,3.19539]
[1720712819963,0.22526,3130.6,3129.5,3.19457823]
[1720712820156,0.22526,3130.6,3129.3,3.59554]
[1720712820370,0.22526,3130.6,3129.5,3.19531]
[1720712820545,0.00081897,3130.9,3129.6,0.319531]
[1720712820751,0.00081897,3130.9,3129.3,0.4]
[1720712821072,6.38885,3130.5,3129.3,0.4]
[1720712821280,1.1062815,3130.8,3129.3,0.4]
[1720712821281,3.19476,3130.2,3129.3,0.4]
[1720712821806,5.58618,3130.3,3129.3,0.4]
[1720712821952,3.19481,3130.1,3129.3,0.4]
[1720712822147,0.319481,3130.0,3129.3,0.4]
[1720712822660,3.19489,3130.0,3129.3,0.4]
[1720712822882,3.1949,3130.0,3129.3,0.4]
[1720712823049,6.38988,3130.0,3129.3,0.4]
[1720712823404,5.4853,3129.4,3129.3,0.4]
[1720712823544,5.4853,3129.4,3129.3,0.36000001]
[1720712823545,12.98284592,3129.4,3129.3,0.36000001]
[1720712823744,20.00721393,3129.4,3129.3,0.36000001]
[1720712823985,19.61015891,3129.4,3129.3,0.19621362]
[1720712824182,9.04390191,3129.4,3127.4,7.24]
[1720712824397,3.19642,3128.5,3127.1,3.1978]
[1720712824694,3.19642,3128.5,3127.2,3.19773]
[1720712824907,3.19642,3128.5,3127.0,7.24]
[1720712824908,3.19652,3128.4,3127.0,7.24]
[1720712825049,0.639294,3128.3,3127.0,7.24]
[1720712825250,0.639294,3128.3,3126.5,3.19846]
[1720712825449,3.19669,3128.3,3126.9,6.39596]
[1720712825650,3.19669,3128.3,3126.4,7.24]
[1720712825651,3.13325877,3128.9,3127.5,3.19743]
[1720712825850,4.30315016,3128.8,3127.1,5.48984]
[1720712826073,2.4794,3128.9,3127.4,3.19744]
[1720712826294,1.1069709,3128.8,3127.4,3.19744]
[1720712826463,3.19581,3129.1,3127.7,3.3125407]
[1720712826658,1.74598958,3129.0,3127.9,3.19702]
[1720712826896,3.19576,3129.2,3127.9,3.19702]
[1720712827196,3.19576,3129.2,3127.8,0.33125407]
[1720712827197,2.4369,3129.5,3128.0,0.06392593]
[1720712827349,2.4369,3129.5,3127.9,3.19699]
[1720712827350,1.10664402,3129.4,3127.9,3.19699]
[1720712827552,1.10667849,3129.3,3127.7,0.1153907]
[1720712827752,2.4369,3129.5,3127.7,0.1153907]
[1720712827753,1.42637649,3129.2,3127.7,0.1153907]
[1720712827989,1.10667649,3129.1,3127.7,0.1153907]
[1720712828195,3.19622,3128.7,3127.7,0.1153907]
[1720712828363,3.515962,3128.6,3127.7,0.1153907]
[1720712828566,3.19662,3128.3,3127.7,0.1153907]
[1720712828990,0.319622,3128.6,3127.7,0.1153907]
[1720712828991,3.19653,3128.4,3127.7,0.1153907]
[1720712829190,0.319622,3128.6,3127.7,0.1153907]
[1720712829191,3.19684,3128.1,3127.7,0.1153907]
[1720712829423,0.319622,3128.6,3127.7,0.1153907]
[1720712829424,3.19676,3128.2,3127.7,0.1153907]
[1720712829563,0.319676,3128.1,3127.7,0.1153907]
[1720712829902,3.516506,3128.1,3127.7,0.1153907]
[1720712830108,0.319676,3128.1,3127.7,0.1153907]
[1720712830276,0.319622,3128.6,3127.7,0.1153907]
[1720712830482,2.3756,3128.9,3127.7,0.1153907]
[1720712830483,3.19649,3128.5,3127.7,0.1153907]
[1720712830681,1.10704258,3128.4,3127.7,0.1153907]
[1720712830885,6.39426,3127.8,3127.7,0.1153907]
[1720712831085,1.10704258,3128.3,3127.7,0.1153907]
[1720712831086,3.19698,3128.0,3127.7,0.1153907]
[1720712831287,3.19713,3127.8,3127.7,0.1153907]
[1720712831510,7.82130144,3127.8,3127.7,0.1153907]
[1720712831681,8.14100144,3127.8,3127.7,0.1153907]
[1720712832086,3.19792,3127.1,3126.2,0.005]
[1720712832414,5.47539,3127.7,3126.2,0.005]
[1720712832415,3.19744,3127.5,3126.2,0.005]
[1720712832618,0.639413,3127.8,3126.2,0.005]
[1720712832791,2.2781,3128.3,3126.9,3.19795]
[1720712833117,3.19656,3128.4,3126.9,3.19795]
[1720712833118,0.547466,3128.2,3127.2,3.19773]
[1720712833282,3.19652,3128.4,3127.0,3.19791]
[1720712833496,3.19652,3128.4,3126.9,0.319795]
[1720712833497,3.19665,3128.3,3126.9,0.319795]
[1720712833834,3.19649,3128.5,3126.5,3.19843]
[1720712834115,3.1972,3127.8,3126.4,2.3937]
[1720712834271,3.19689,3128.1,3126.4,2.3937]
[1720712834470,3.19657,3128.4,3126.4,2.3937]
[1720712834471,0.65399455,3128.7,3126.4,5.59224]
[1720712834720,3.19668,3128.3,3126.8,3.1981]
[1720712835020,3.19668,3128.3,3126.4,2.3937]
[1720712835021,3.19712,3127.9,3126.4,2.3937]
[1720712835230,3.19726,3127.7,3126.4,2.3937]
[1720712835377,3.19735,3127.6,3126.4,2.3937]
[1720712835582,3.516398,3128.2,3126.4,2.3937]
[1720712835583,3.19722,3127.8,3126.4,2.3937]
[1720712835893,2.2691,3127.4,3126.2,0.005]
[1720712836070,3.19794,3127.1,3126.2,0.005]
[1720712836718,3.42459,3127.3,3126.2,0.005]
[1720712836904,3.19775,3127.2,3126.2,0.005]
[1720712837086,3.19786,3127.1,3126.2,0.005]
[1720712837274,3.19796,3127.0,3126.2,0.005]
[1720712837476,0.22691,3127.3,3126.2,0.005]
[1720712837477,0.319796,3126.9,3126.2,0.005]
[1720712837725,3.19852,3126.5,3126.2,0.005]
[1720712838174,3.19759038,3126.5,3126.2,0.005]
[1720712838329,6.39661,3126.7,3126.2,0.005]
[1720712838527,3.19852,3126.5,3126.2,0.005]
[1720712838839,0.319852,3126.4,3126.2,0.005]
[1720712839050,0.319796,3126.9,3126.2,0.005]
[1720712839436,10.49715,3127.8,3126.2,0.005]
[1720712839437,2.2886,3128.0,3126.2,0.005]
[1720712839729,3.19754,3127.4,3126.3,2.295]
[1720712840041,2.2886,3128.0,3126.3,2.295]
[1720712840380,2.2886,3128.0,3126.2,0.005]
[1720712840381,3.19714,3127.8,3126.2,0.005]
[1720712840671,2.2886,3128.0,3126.2,0.005]
[1720712840672,3.1981,3126.9,3126.2,0.005]
[1720712840867,3.19748,3127.5,3126.2,0.005]
[1720712841033,0.319714,3127.7,3126.2,0.005]
[1720712841034,3.19817,3126.8,3126.2,0.005]
[1720712841224,3.19839,3126.6,3126.2,0.005]
[1720712841432,2.2886,3126.9,3126.2,0.005]
[1720712841657,3.19866,3126.3,3126.2,0.005]
[1720712842547,6.41350396,3126.3,3126.2,0.005]
[1720712842888,9.93186396,3126.3,3124.6,7.24]
[1720712843191,9.93186396,3126.3,3124.5,0.1153907]
[1720712843192,3.19934,3125.7,3124.5,0.1153907]
[1720712843545,3.19952,3125.5,3124.5,0.1153907]
[1720712843744,0.319952,3125.4,3124.5,0.1153907]
[1720712844045,3.519602,3125.4,3124.5,0.1153907]
[1720712844260,6.719282,3125.4,3124.5,0.1153907]
[1720712844493,0.01618396,3124.6,3124.5,0.1153907]
[1720712845347,3.21658396,3124.6,3124.5,0.1153907]
[1720712845546,7.05868236,3124.6,3124.5,0.1153907]
[1720712846249,7.05868236,3124.6,3122.7,3.20226]
[1720712846250,3.20134,3123.7,3122.0,3.20512012]
[1720712846463,3.20106,3124.0,3122.1,3.20294]
[1720712846649,3.20116,3123.9,3122.1,3.2029]
[1720712846850,2.90858236,3124.6,3122.3,3.20273]
[1720712846851,3.20103,3124.0,3122.3,3.20273]
[1720712847188,3.20119,3123.9,3122.4,0.320273]
[1720712847488,3.20144,3123.6,3122.4,0.320273]
[1720712847646,3.2016,3123.5,3122.0,3.20518012]
[1720712848267,2.4403,3123.4,3122.0,0.00215012]
[1720712848614,0.01618522,3122.1,3122.0,0.00215012]
[1720712848911,0.01618522,3122.1,3121.1,5.54919]
[1720712849051,0.01618522,3122.1,3121.2,0.62897888]
[1720712849266,0.01618522,3122.1,3121.4,3.2036]
[1720712849462,0.01618522,3122.1,3121.7,3.20332]
[1720712849774,0.01618522,3122.1,3121.9,3.20317]
[1720712850176,0.3197,3123.6,3122.1,3.20292]
[1720712850177,3.52121,3123.6,3122.1,3.20292]
[1720712850372,0.320103,3124.0,3122.1,3.20292]
[1720712850373,0.352121,3123.5,3122.1,3.20292]
[1720712850578,1.11032755,3124.6,3121.9,3.20317]
[1720712850579,0.6416984,3124.6,3123.0,3.20201]
[1720712850788,2.4275,3124.9,3123.2,3.20183]
[1720712851108,3.19971,3125.3,3123.7,3.20124]
[1720712851322,3.8456,3125.6,3123.2,2.4042]
[1720712851463,3.20025,3124.8,3122.4,2.4042]
[1720712851664,0.0161925,3123.5,3123.1,3.20193]
[1720712851864,0.0161925,3123.5,3123.2,0.320193]
[1720712852102,0.0161925,3123.5,3122.6,3.20243]
[1720712852272,0.0161925,3123.5,3122.4,2.4042]
[1720712852674,0.0161925,3123.5,3122.3,3.20271]
[1720712852675,0.0161925,3123.5,3122.3,3.20276]
[1720712852917,0.0161925,3122.7,3122.0,3.20307]
[1720712853122,0.0161925,3122.7,3122.3,3.20276]
[1720712853412,0.0161925,3122.7,3121.7,2.3232]
[1720712853413,0.0161925,3122.5,3122.1,3.20287]
[1720712853576,0.0161925,3122.5,3122.4,6.40532]
[1720712853907,0.0161925,3122.5,3122.4,11.86648]
[1720712854063,1e-08,3122.5,3122.4,14.86648]
[1720712854260,1e-08,3122.5,3122.4,11.86648]
[1720712854481,1e-08,3122.5,3122.4,10.1908956]
[1720712854771,1e-08,3122.5,3122.4,13.3935556]
[1720712855101,3.20002,3125.0,3123.5,3.20147]
[1720712855102,3.2,3125.0,3123.5,3.20147]
[1720712855517,0.3197,3125.1,3123.6,3.20142]
[1720712855676,0.3197,3125.1,3123.5,3.20147]
[1720712856002,0.3197,3125.1,3123.5,0.320147]
[1720712856003,3.20005,3125.0,3123.5,0.320147]
[1720712856210,0.3197,3124.7,3122.6,3.20238]
[1720712856364,3.20058,3124.5,3123.0,3.20204]
[1720712856764,3.20011,3124.9,3123.2,3.20179]
[1720712857081,3.19989,3125.1,3123.5,3.20152]
[1720712857281,2.2613,3125.5,3124.0,3.20095]
[1720712857488,0.00081242,3126.1,3124.7,3.20023]
[1720712857974,0.00081242,3126.1,3124.1,0.320095]
[1720712858276,0.00081242,3126.1,3124.5,3.20046]
[1720712858518,0.00081242,3126.1,3124.8,3.20018]
[1720712858712,3.19969242,3126.1,3124.1,3.520915]
[1720712858871,0.31996924,3126.0,3124.7,3.2003]
[1720712859263,0.00081242,3126.1,3124.9,3.19918635]
[1720712859471,0.00081242,3126.1,3125.1,3.19983]
[1720712859671,0.00081242,3126.1,3124.6,3.084]
[1720712859672,0.00081242,3126.1,3125.4,3.19955]
[1720712860179,0.00081242,3126.1,3124.9,2.4611]
[1720712860608,0.00081242,3126.1,3125.3,3.19966]
[1720712860904,0.00081242,3126.1,3125.4,3.19958]
[1720712861312,0.00081242,3126.1,3125.6,3.19929]
[1720712861519,0.00081242,3126.1,3125.7,3.19926]
[1720712861811,0.00081242,3126.1,3124.3,2.3351]
[1720712862012,0.00081242,3126.1,3125.3,3.19966]
[1720712862491,0.00081242,3126.1,3125.4,3.19956]
[1720712862697,0.00081242,3126.1,3125.5,3.19945]
[1720712862895,0.00081242,3126.1,3124.3,9.5751]
[1720712862896,0.00081242,3126.1,3125.9,3.19904]
[1720712863306,0.00081242,3126.1,3125.1,3.1990112]
[1720712863841,0.00081242,3126.1,3124.6,6.28435]
[1720712863842,0.00081242,3126.1,3125.0,3.19999]
[1720712864205,0.00081242,3126.1,3124.9,3.20004]
[1720712864506,0.00081242,3126.1,3124.3,12.5751]
[1720712864507,0.00081242,3126.1,3124.5,3.20047]
[1720712864709,2.3326,3125.9,3123.7,2.289]
[1720712864905,3.19939,3125.6,3124.0,3.20094]
[1720712865324,0.78326,3125.8,3124.1,3.20091]
[1720712865325,0.00081364,3124.6,3124.1,3.20091]
[1720712865539,0.00081364,3124.6,3124.1,3.2009]
[1720712865751,0.00081364,3124.6,3123.8,3.43009]
[1720712866263,0.00081364,3124.6,3124.0,3.20098]
[1720712866416,0.00081364,3124.6,3123.8,0.2289]
[1720712866417,0.00081364,3124.6,3124.5,3.20051]
[1720712866615,0.00081364,3124.6,3123.8,0.2289]
[1720712866844,0.00081364,3124.6,3123.4,3.084]
[1720712867053,0.00081364,3124.6,3124.0,3.20095]
[1720712867463,0.00081364,3124.6,3124.2,3.20075]
[1720712867615,0.00081364,3124.6,3123.8,6.40229]
[1720712867814,2.4801,3124.5,3123.2,7.24]
[1720712868028,2.4801,3124.5,3122.9,3.2021]
[1720712868029,3.44871136,3124.4,3122.9,3.2021]
[1720712868245,3.20083,3124.2,3122.8,3.20225]
[1720712868470,3.20083,3124.2,3122.6,3.20244]
[1720712868679,3.20115,3123.9,3122.4,3.20266]
[1720712868861,0.3197,3124.2,3122.1,5.45352]
[1720712869045,0.24809136,3124.4,3122.2,3.808192]
[1720712869381,0.3197,3124.2,3122.8,3.20223]
[1720712869735,0.24809136,3124.4,3122.9,3.20207]
[1720712869942,2.4801,3124.5,3123.3,3.20173]
[1720712870164,0.00081364,3124.6,3123.5,3.20151]
[1720712870361,0.00081364,3124.6,3123.5,3.20153]
[1720712870574,0.00081364,3124.6,3124.1,0.2]
[1720712871369,2.2579,3125.1,3124.1,0.2]
[1720712871370,2.25789756,3125.1,3124.1,0.2]
[1720712871660,3.2,3125.0,3124.1,0.2]
[1720712871865,2.48368732,3125.1,3124.1,0.2]
[1720712872178,1.10846385,3125.0,3124.1,0.2]
[1720712872330,3.20027,3124.8,3124.1,0.2]
[1720712872536,3.20032,3124.7,3124.1,0.2]
[1720712872832,1.42856645,3124.6,3124.1,0.2]
[1720712873032,1.10853445,3124.5,3124.1,0.2]
[1720712873254,3.20072,3124.3,3124.1,0.2]
[1720712873499,3.19990224,3124.3,3124.1,0.2]
[1720712873653,0.46862915,3125.3,3124.1,0.2]
[1720712873987,3.20048,3124.6,3124.1,0.2]
[1720712874188,3.20031,3124.7,3124.1,0.2]
[1720712874396,1.10852898,3124.6,3124.1,0.2]
[1720712874602,0.79836873,3125.0,3124.1,0.4]
[1720712874603,1.42822898,3124.5,3124.1,0.4]
[1720712874895,0.79836873,3125.0,3124.1,0.4]
[1720712874896,9.06812,3124.2,3124.1,0.4]
[1720712875107,10.87461388,3124.2,3124.1,0.4]
[1720712875447,11.74350078,3124.2,3124.1,0.4]
[1720712875766,4.47299388,3124.2,3124.1,0.4]
[1720712875969,7.67380388,3124.2,3124.1,0.4]
[1720712876161,4.47299388,3124.2,3124.1,0.4]
[1720712876699,6.65626352,3124.2,3124.1,0.4]
[1720712877249,9.85707352,3124.2,3124.1,0.4]
[1720712877920,14.53692152,3124.2,3124.1,0.36000001]
[1720712878377,14.53711391,3124.2,3124.1,0.36000001]
[1720712878588,10.72696591,3124.2,3124.1,0.36000001]
[1720712878754,14.79045928,3124.2,3124.1,0.36000001]
[1720712878953,17.63711328,3124.2,3124.1,0.36000001]
[1720712879205,3.20186,3123.2,3122.0,0.6]
[1720712879357,3.20213,3123.0,3122.0,0.6]
[1720712879580,1.42904169,3123.1,3122.0,0.6]
[1720712879581,0.320186,3123.1,3122.0,0.6]
[1720712879782,0.3197,3123.6,3122.1,3.20292]
[1720712880080,1.10895419,3123.5,3122.1,3.20287]
[1720712880302,3.52088,3123.9,3122.4,3.20256]
[1720712880303,0.3197,3123.9,3122.4,3.20256]
[1720712880488,0.3197,3123.9,3122.6,3.20237]
[1720712880692,0.3197,3123.9,3122.3,2.4233]
[1720712880914,0.3197,3123.9,3122.8,6.40432]
[1720712881130,0.3197,3124.7,3123.1,3.20194]
[1720712881308,0.3197,3124.5,3123.1,3.20194]
[1720712881478,0.3197,3124.3,3123.1,3.20194]
[1720712881678,5.61555,3124.9,3123.2,3.20182]
[1720712881883,1.69492797,3124.8,3123.2,3.842196]
[1720712882108,1.69492797,3124.8,3122.6,3.26643684]
[1720712882109,0.58639187,3124.8,3123.5,3.20147]
[1720712882379,2.4154,3124.9,3123.5,3.20147]
[1720712882380,1.10841705,3124.7,3123.5,3.20147]
[1720712882624,2.4154,3124.9,3123.6,3.20142]
[1720712882915,0.24836873,3125.0,3123.7,3.20126]
[1720712883075,6.12032381,3125.5,3123.9,3.20112]
[1720712883076,2.2708,3125.5,3123.9,3.20112]
[1720712883280,0.3197,3125.3,3124.0,3.20099]
[1720712883510,0.3197,3125.3,3123.9,3.20112]
[1720712883511,3.5194,3125.3,3123.9,3.20112]
[1720712883728,3.5194,3125.3,3123.2,2.3509]
[1720712883729,3.2003,3124.7,3123.2,2.3509]
[1720712884029,3.19992,3125.1,3123.5,3.20145]
[1720712884204,1.42837608,3125.0,3123.6,3.20142]
[1720712884411,0.319992,3125.0,3123.5,3.20148]
[1720712884581,3.51955,3125.2,3123.8,3.20115]
[1720712884776,1.10841697,3125.1,3123.8,3.20115]
[1720712885003,1.10841697,3125.0,3123.8,3.20115]
[1720712885204,0.3197,3125.2,3123.8,3.20115]
[1720712885528,1.10841244,3125.1,3123.5,3.20148]
[1720712885816,1.10841244,3125.0,3123.7,3.20132]
[1720712886035,0.65141242,3125.7,3124.3,3.20063]
[1720712886322,1.10817762,3125.6,3124.0,3.20094]
[1720712886475,4.80361162,3125.5,3124.0,3.20094]
[1720712886677,3.695434,3125.5,3124.0,3.20094]
[1720712886918,1.10824916,3125.4,3124.0,3.20094]
[1720712887130,0.495894,3125.5,3123.8,2.3815]
[1720712887131,0.495894,3125.5,3124.2,3.20075]
[1720712887321,1.10823757,3125.4,3124.2,3.20075]
[1720712887521,3.19962,3125.4,3124.0,3.20102]
[1720712887835,3.19958,3125.5,3124.0,3.20102]
[1720712888017,3.1999,3125.1,3123.8,2.3815]
[1720712888526,3.35821242,3125.4,3123.8,2.3815]
[1720712888527,2.3871,3125.4,3123.8,2.3815]
[1720712888728,2.3871,3125.4,3123.9,3.759314]
[1720712888729,0.65577524,3125.3,3123.9,3.759314]
[1720712888933,0.65577524,3125.3,3124.0,3.20099]
[1720712889297,3.85548524,3125.3,3123.8,2.3815]
[1720712889502,3.20013,3124.9,3123.2,2.2962]
[1720712889692,3.19996,3125.1,3123.2,2.2962]
[1720712889892,0.38513724,3125.0,3124.0,3.20101]
[1720712890096,0.65577524,3125.3,3123.5,3.20145]
[1720712890097,1.30718766,3125.3,3123.5,3.20145]
[1720712890330,4.50689766,3125.3,3123.6,3.20142]
[1720712890534,3.19996,3125.1,3123.7,3.20131]
[1720712890706,1.30718766,3125.3,3123.8,3.20118]
[1720712890907,4.95959346,3125.2,3123.8,3.20118]
[1720712891108,0.88151187,3125.1,3123.8,3.20118]
[1720712891307,1.10832115,3125.0,3123.8,3.20118]
[1720712891525,3.19989,3125.2,3123.6,3.20135]
[1720712891727,3.20006,3125.0,3123.6,3.20135]
[1720712891941,7.87242505,3125.3,3123.6,3.20135]
[1720712892101,1.77676429,3125.2,3123.6,3.20135]
[1720712892295,3.20006,3125.0,3123.6,3.20135]
[1720712892496,1.10832809,3124.9,3123.6,3.20135]
[1720712892747,1.10832809,3124.9,3123.6,3.20141]
[1720712892912,1.10832809,3125.1,3123.8,3.20117]
[1720712893100,3.36641971,3125.4,3123.4,3.20158]
[1720712893101,1.10831649,3125.0,3123.4,3.20158]
[1720712893305,1.10831649,3125.0,3123.3,0.22962]
[1720712893306,1.10831649,3124.9,3123.3,0.22962]
[1720712893536,0.43083365,3124.8,3123.4,3.20157]
[1720712893728,0.43083365,3124.8,3123.5,3.20147]
[1720712893933,1.10838628,3124.7,3123.5,3.20147]
[1720712894133,1.10838628,3124.6,3123.5,3.20147]
[1720712894336,3.364,3124.6,3122.5,2.2899]
[1720712894554,4.75613491,3124.5,3123.0,3.20196]
[1720712894757,1.10838628,3124.4,3123.0,3.20196]
[1720712894959,1.10838628,3124.4,3122.8,3.20217]